Cogmind - Beta 14 @@@ ROGUE MODE // 2024.08.29 @ 14:20:47 Player: THN-L0C Result: Destroyed by L-31 Rogue with Katana Performance ------------- Evolutions (2) 1000 Regions Visited (9) 1800 Robots Destroyed (82) 410 Value Destroyed (3474) 3474 Prototype IDs (30) 600 Alien Tech Used (0) 0 Bonus (1626) 1626 TOTAL SCORE: 8910 Bonus ------- High Alert Combat Kills 548 Follower Combat Kills 78 Entered Garrisons 200 Used RIF Installer 500 Aligned with FarCom 300 Cogmind --------- Core Integrity 0/550 Matter 130/300 Energy 160/160 System Corruption 4% Temperature Cool (27) Movement Walking (120) Location -8/Materials Parts ------- > --- POWER (1) -------- Light Nuclear Core > --- PROPULSION (5) --- Aluminum Leg Aluminum Leg Aluminum Leg Aluminum Leg Improved Aluminum Leg > --- UTILITY (2) ------ High-capacity Storage Unit Layered Light Armor Plating > --- WEAPON (3) ------- Longsword +1 > --- INVENTORY (20) --- Light Nuclear Core High-capacity Matter Pod (0) Improved Melee Analysis Suite Improved Melee Analysis Suite Layered Light Armor Plating Medium Reactive Plating Force Field Relay Coupler [NC] (25) Relay Coupler [Swarmer] (40) Relay Coupler [Swarmer] (37) Relay Coupler [Grunt] (31) Relay Coupler [Grunt] (28) Relay Coupler [Grunt] (28) Relay Coupler [Brawler] (26) Relay Coupler [Sentry] (19) Relay Coupler [Sentry] (18) Relay Coupler [Demolisher] (18) Relay Coupler [Hunter] (18) Magnetic Acceleration Cannon Rocket Launcher Peak State ------------ > --- POWER ------------ Reinforced Fission Core > --- PROPULSION ------- Carbon-fiber Leg Carbon-fiber Leg Titanium Leg VSS Leg VSS Leg > --- UTILITY ---------- High-capacity Storage Unit Reactive Plating > --- WEAPON ----------- Beamcaster Longsword +1 Makeshift Spear > --- INVENTORY -------- Light Nuclear Core Light Nuclear Core Light Nuclear Core Carbon-fiber Leg Carbon-fiber Leg High-capacity Matter Pod Structural Scanner Melee Analysis Suite Relay Coupler [NC] Relay Coupler [Swarmer] Relay Coupler [Swarmer] Relay Coupler [Grunt] Relay Coupler [Brawler] Relay Coupler [Brawler] Relay Coupler [Sentry] Relay Coupler [Demolisher] EM Pulse Cannon Rocket Launcher [Rating: 47] Favorites ----------- Power Ion Engine Engine Ion Engine Power Core Reinforced Fission Core Propulsion VSS Leg Treads Light Treads Leg VSS Leg Utility High-capacity Storage Unit Device Seismic Detector Storage High-capacity Storage Unit Protection Hardened Light Armor Plating Weapon High-powered Shotgun Energy Gun Beamcaster Ballistic Gun High-powered Shotgun Ballistic Cannon Magnetic Acceleration Cannon Launcher Rocket Launcher Special Weapon Mining Laser Slashing Weapon Longsword +1 Piercing Weapon Makeshift Spear Build | -11 -10 -10 -9 -9 -9 -8 -8 -8 -8 ------- Run | Yrd Mat Min Mat Min Exi Min Mat Gar Mat Slots Evolved 4 | . . . 2 . . . 2 . . Power . | . . . . . . . . . . Propulsion 3 | . . . 1 . . . 2 . . Utility . | . . . . . . . . . . Weapon 1 | . . . 1 . . . . . . Parts Attached 136 | 7 10 5 36 4 4 . 2 67 1 Power 11 | 1 . 1 4 1 . . . 4 . Engine 6 | 1 . 1 2 1 . . . 1 . Core 5 | . . . 2 . . . . 3 . Reactor . | . . . . . . . . . . Propulsion 32 | 2 . 1 6 . . . 2 21 . Treads 5 | 2 . 1 . . . . . 2 . Leg 27 | . . . 6 . . . 2 19 . Wheel . | . . . . . . . . . . Hover . | . . . . . . . . . . Flight . | . . . . . . . . . . Utility 26 | 2 3 2 7 . 1 . . 11 . Device 7 | 1 . 2 1 . . . . 3 . Storage 5 | 1 1 . 2 . 1 . . . . Processor . | . . . . . . . . . . Hackware . | . . . . . . . . . . Protection 14 | . 2 . 4 . . . . 8 . Artifact . | . . . . . . . . . . Weapon 67 | 2 7 1 19 3 3 . . 31 1 Energy Gun 10 | 1 1 . 1 . . . . 7 . Energy Cannon . | . . . . . . . . . . Ballistic Gun 29 | 1 3 1 13 1 3 . . 7 . Ballistic Cannon 4 | . . . . . . . . 4 . Launcher 6 | . . . 1 1 . . . 4 . Special Weapon 3 | . 3 . . . . . . . . Impact Weapon . | . . . . . . . . . . Slashing Weapon 6 | . . . . . . . . 5 1 Piercing Weapon 9 | . . . 4 1 . . . 4 . Special Melee Weapon . | . . . . . . . . . . Unidentified Prototypes 1 | . . . 1 . . . . . . Parts Lost 25 | . . . 3 1 . . . 20 1 Power 2 | . . . 1 . . . . 1 . Propulsion 10 | . . . . . . . . 10 . Utility 4 | . . . . . . . . 4 . Weapon 9 | . . . 2 1 . . . 5 1 Highest Loss Streak 3 | . . . 2 1 . . . 3 1 To Critical Strikes . | . . . . . . . . . . Average Slot Usage (%) 91 | . 100 100 97 99 78 100 100 80 99 Engine 7 | . 14 14 5 11 11 11 9 2 . Core 3 | . . . 4 . . . . 5 9 Treads 7 | . 28 28 2 . . . . . . Leg 26 | . . . 29 33 33 33 45 36 45 Device 2 | . 4 12 1 . . . . . . Storage 10 | . 14 14 11 11 11 11 9 9 9 Protection 7 | . 9 1 8 11 11 11 9 6 9 Energy Gun 2 | . 8 . 3 . . . . 3 . Ballistic Gun 17 | . 17 28 24 31 12 33 27 9 . Ballistic Cannon 1 | . . . . . . . . 1 17 Piercing Weapon 2 | . . . 3 . . . . 3 8 Peak Build Rating 47 | 7 8 9 27 31 31 31 36 47 37 Average Rating 24 | 5 7 8 22 29 24 31 35 32 34 On Entrance 21 | . 7 8 9 25 30 31 31 36 35 Naked Turns . | . . . . . . . . . . Heaviest Build 92 | 15 30 30 72 63 63 63 63 92 67 Greatest Support 77 | 40 40 40 51 36 36 36 65 77 53 Greatest Overweight (x) 23 | . . . 1 1 1 1 . 23 1 Average Overweight (x) . | . . . . 1 1 1 . 1 1 Largest Inventory Capacity 20 | 8 15 15 20 20 20 20 20 20 20 Average Capacity 18 | 7 10 15 19 20 20 20 20 20 20 Most Carried 20 | 2 13 15 20 20 20 20 19 20 20 Average Carried 16 | . 7 14 19 19 17 20 18 18 20 Final Capacity 20 | 8 15 15 20 20 20 20 20 20 20 Final Carried 20 | 2 13 15 20 19 20 20 18 20 20 Class Distribution -------------------- 55% | Mutant 20% | Tank 14% | Skirmisher 6% | Scavenger-Mutant Dominant Class ---------------- Mutant | -10/Materials Mutant | -10/Mines Mutant | -9/Materials Tank | -9/Mines Mutant | -9/Exiles Skirmisher | -8/Mines Skirmisher | -8/Materials Mutant | -8/Garrison Scavenger-Mutant | -8/Materials Resources | -11 -10 -10 -9 -9 -9 -8 -8 -8 -8 ----------- Run | Yrd Mat Min Mat Min Exi Min Mat Gar Mat Matter Collected 3377 | 293 315 202 781 304 . . . 1373 109 Remotely . | . . . . . . . . . . Salvage Created 2689 | 144 352 75 966 239 . . . 755 158 Parts 167 | 7 26 5 62 16 . . . 38 13 Haulers Intercepted 1 | . . . 1 . . . . . . Recyclers Shooed 2 | 1 . . 1 . . . . . . Parts Field Recycled . | . . . . . . . . . . Retrieved Matter . | . . . . . . . . . . Parts Self-Destructed . | . . . . . . . . . . Prevented . | . . . . . . . . . . Kills | -11 -10 -10 -9 -9 -9 -8 -8 -8 -8 ------- Run | Yrd Mat Min Mat Min Exi Min Mat Gar Mat Combat Hostiles Destroyed 69 | . 12 1 21 5 . . . 26 4 Melee 9 | . . . . 1 . . . 6 2 Guns 52 | . 12 . 21 4 . . . 15 . Cannons 4 | . . . . . . . . 2 2 AOE 4 | . . 1 . . . . . 3 . Classes Destroyed 13 | 2 3 1 4 . . . . 2 1 Worker 2 | . 1 . . 1 . . . . . Builder 2 | . . . 2 . . . . . . Tunneler 4 | 3 . . . 1 . . . . . Hauler 1 | . . . 1 . . . . . . Recycler 3 | 1 . 1 . 1 . . . . . Watcher 2 | . . . 1 . . . . . 1 Swarmer 18 | . 5 . 2 3 . . . 6 2 Grunt 33 | . 7 . 12 . . . . 13 1 Brawler 1 | . . . . . . . . . 1 Duelist 1 | . . . . . . . . 1 . Sentry 13 | . . . 7 2 . . . 4 . Behemoth 2 | . . . . . . . . 2 . Assembled 1 | . . 1 . . . . . . . Best Kill Streak 4 | 3 3 1 4 3 . . . 4 3 Combat Bots Only 4 | . 3 1 4 3 . . . 4 2 Max Kills in Single Turn 2 | 1 1 1 1 2 . . . 2 1 Gunslinging 1 | . . . . 1 . . . . . Exploded 2 | . . 1 . . . . . 2 . Melee 1 | . . . . 1 . . . 1 1 Uniques/NPCs Destroyed 1 | . . . . 1 . . . . . YI-UF0 (-9/Mines) Combat | -11 -10 -10 -9 -9 -9 -8 -8 -8 -8 -------- Run | Yrd Mat Min Mat Min Exi Min Mat Gar Mat Hostile Shots Fired 448 | . 56 3 119 28 . . 1 221 20 Missed 96 | . 9 . 19 7 . . . 57 4 Damage Taken 5872 | . 485 21 1201 597 . . 16 3255 297 Core 987 | . 113 . 224 92 . . . 503 55 Absorbed by Shields . | . . . . . . . . . . Redirected to Shielding 32 | . 32 . . . . . . . . Ignored by Resistances 146 | . . . . . . . . 146 . Regen/Repaired (Parts) 35 | . . . 35 . . . . . . Core Remaining (%) 58 | 100 . 54 . . . 21 . . . Volleys Fired 280 | 10 48 2 78 10 . . . 126 6 Largest 3 | 2 2 2 3 3 . . . 3 1 Hottest 125 | 70 100 40 103 75 . . . 125 53 Shots Fired 522 | 20 85 4 186 26 . . . 195 6 Gun 441 | 20 77 4 186 25 . . . 129 . Cannon 66 | . . . . . . . . 60 6 Launcher 7 | . . . . 1 . . . 6 . Special 8 | . 8 . . . . . . . . Kinetic 445 | 10 66 4 170 25 . . . 164 6 Thermal 70 | 10 19 . 16 . . . . 25 . Explosive 7 | . . . . 1 . . . 6 . Electromagnetic . | . . . . . . . . . . Robot Hit Streak 15 | 10 11 2 15 5 . . . 10 5 Robot Miss Streak 14 | 1 3 2 6 14 . . . 6 1 Penetration Max . | . . . . . . . . . . Secondary Targets 8 | . 1 . 2 1 . . . 4 . Max Gunslinging Chain 1 | . 1 . 1 1 . . . 1 . Shots Hit Robots 362 | 17 54 2 129 14 . . . 133 13 Core Hits 151 | 5 20 2 45 13 . . . 60 6 Critical Kills 1 | . . . 1 . . . . . . Critical Parts Destroyed 3 | . . . 1 . . . . 2 . Critical Strikes 11 | . 1 . 6 . . . . 3 1 Burn 3 | . 1 . 2 . . . . . . Destroy 4 | . . . 2 . . . . 2 . Blast 1 | . . . . . . . . 1 . Sever 1 | . . . . . . . . . 1 Impale 2 | . . . 2 . . . . . . Melee Attacks 77 | . . . 16 2 . . . 44 15 Impact . | . . . . . . . . . . Slashing 19 | . . . . . . . . 11 8 Piercing 58 | . . . 16 2 . . . 33 7 Sneak Attacks 2 | . . . 2 . . . . . . Combat Hostiles . | . . . . . . . . . . Follow-up Attacks . | . . . . . . . . . . Damage Inflicted 7373 | 195 739 25 2029 281 . . . 3654 450 Guns 4402 | 195 739 25 1851 191 . . . 1401 . Cannons 1598 | . . . . . . . . 1432 166 Explosions 399 | . . . . 6 . . . 393 . Melee 946 | . . . 178 56 . . . 428 284 Ramming 28 | . . . . 28 . . . . . Kinetic 5494 | 83 650 25 1632 191 . . . 2747 166 Thermal 506 | 112 89 . 219 . . . . 86 . Explosive 399 | . . . . 6 . . . 393 . Electromagnetic . | . . . . . . . . . . Impact . | . . . . . . . . . . Slashing 589 | . . . . . . . . 305 284 Piercing 357 | . . . 178 56 . . . 123 . Highest Corruption 4 | . . . 1 1 1 1 . 2 4 Average Corruption 1 | . . . 1 1 1 1 . 2 2 Corruption Purged . | . . . . . . . . . . Corruption Blocked . | . . . . . . . . . . Effects 67 | . . . 14 14 4 . . 32 3 Message Errors 17 | . . . 3 4 1 . . 8 1 Matter Fused 22 | . . . 3 3 2 . . 12 2 Heat Flow Errors 7 | . . . 4 . . . . 3 . Energy Discharges 8 | . . . 2 4 1 . . 1 . Parts Rejected 2 | . . . 1 . . . . 1 . Data Loss (minor) 5 | . . . . 2 . . . 3 . Data Loss (major) 3 | . . . . 1 . . . 2 . Misfires 2 | . . . . . . . . 2 . Alerts 1 | . . . 1 . . . . . . Overload Shots . | . . . . . . . . . . Overflow Damage 73 | . . . . . . . . 58 15 Projectiles 18 | . . . . . . . . 3 15 Explosions 19 | . . . . . . . . 19 . Melee 36 | . . . . . . . . 36 . Knockbacks 2 | . . . . . . . . . 2 Impact . | . . . . . . . . . . Kinetic 2 | . . . . . . . . . 2 Secondary . | . . . . . . . . . . Self-Inflicted Damage 42 | . . . . . . . . 42 . Shots 2 | . . . . . . . . 2 . Rammed . | . . . . . . . . . . Targets Rammed 5 | . . . . 5 . . . . . Kicked 5 | . . . . 5 . . . . . Crushed . | . . . . . . . . . . Highest Temperature 334 | 36 126 . 334 54 . . . 285 55 Average Temperature 83 | 13 33 . 128 16 . . . 77 28 Received Heat Transfer 1974 | . 231 . 549 36 . . 9 1068 81 Effects 7 | . . . 5 . . . . 2 . Energy Bleed 3 | . . . 2 . . . . 1 . Interference 3 | . . . 2 . . . . 1 . Damage (minor) 1 | . . . 1 . . . . . . Siege Activations . | . . . . . . . . . . Robots Corrupted . | . . . . . . . . . . Combat Hostiles . | . . . . . . . . . . Parts Fried . | . . . . . . . . . . Impact Corruptions . | . . . . . . . . . . Robots Melted . | . . . . . . . . . . Combat Hostiles . | . . . . . . . . . . Parts Melted 4 | 1 . . 1 2 . . . . . Heat Transferred 1443 | 333 333 . 629 . . . . 148 . Parts Sabotaged . | . . . . . . . . . . Parts Stolen . | . . . . . . . . . . Parts Stripped . | . . . . . . . . . . Power Chain Reactions . | . . . . . . . . . . Alert | -11 -10 -10 -9 -9 -9 -8 -8 -8 -8 ------- Run | Yrd Mat Min Mat Min Exi Min Mat Gar Mat Peak Influence 2794 | 20 155 64 437 220 . . . 2794 1422 Initial 1361 | . 13 60 24 102 . . . 2 1361 Average 591 | 7 49 23 226 44 . . . 1250 1378 Maximum Alert Level 5 | . . . 2 1 . . . 5 4 Low Security (%) 50 | 100 100 100 36 95 . 100 100 11 . Level 1 13 | . . . 59 4 . . . 6 . Level 2 9 | . . . 3 . . . . 23 . Level 3 3 | . . . . . . . . 10 . Level 4 9 | . . . . . . . . 12 100 Level 5 14 | . . . . . . . . 36 . High Security . | . . . . . . . . . . Max Security . | . . . . . . . . . . Squads Dispatched 7 | . 2 . 4 . . . . . 1 Investigation 3 | . 2 . 1 . . . . . . Extermination . | . . . . . . . . . . Reinforcement 3 | . . . 3 . . . . . . Assault 1 | . . . . . . . . . 1 Garrison . | . . . . . . . . . . Intercept . | . . . . . . . . . . Searches Triggered . | . . . . . . . . . . Construction Impeded . | . . . . . . . . . . Haulers Reinforced . | . . . . . . . . . . Active Scanning Responses . | . . . . . . . . . . Cargo Convoy Interrupts . | . . . . . . . . . . Stealth | -11 -10 -10 -9 -9 -9 -8 -8 -8 -8 --------- Run | Yrd Mat Min Mat Min Exi Min Mat Gar Mat Distress Signals 8 | . 1 . 6 . . . 1 . . Communications Jammed . | . . . . . . . . . . Distress Signals . | . . . . . . . . . . Times Spotted 129 | . 24 3 48 5 . . 5 36 8 Peak Tracking Total 7 | . 3 3 7 3 . . 6 6 6 Tactical Retreats 13 | . 3 . 5 1 . . . 4 . Traps | -11 -10 -10 -9 -9 -9 -8 -8 -8 -8 ------- Run | Yrd Mat Min Mat Min Exi Min Mat Gar Mat Traps Triggered 1 | . . . . . . . . 1 . Indirectly . | . . . . . . . . . . Trap Hack Attempts . | . . . . . . . . . . Triggered . | . . . . . . . . . . Disarmed . | . . . . . . . . . . Reprogrammed . | . . . . . . . . . . Reused 3 | . . . . 1 . . . 2 . Traps Extracted . | . . . . . . . . . . Installed 4 | . . . . 1 . . . 3 . Triggered 2 | . . . . . . . . 2 . Most Traps Carried 4 | . . 4 4 4 3 3 3 3 . Machines | -11 -10 -10 -9 -9 -9 -8 -8 -8 -8 ---------- Run | Yrd Mat Min Mat Min Exi Min Mat Gar Mat Machines Disabled 5 | . . . . . . . . 5 . Max in Single Turn 1 | . . . . . . . . 1 . Garrison Relay 5 | . . . . . . . . 5 . Machines Repaired . | . . . . . . . . . . Machines Dismantled . | . . . . . . . . . . Machines Sabotaged . | . . . . . . . . . . Overloaded Fab Kills . | . . . . . . . . . . Hacking | -11 -10 -10 -9 -9 -9 -8 -8 -8 -8 --------- Run | Yrd Mat Min Mat Min Exi Min Mat Gar Mat Machines Accessed 29 | . 10 . 12 . 1 . 1 4 1 Terminals 22 | . 8 . 9 . . . . 4 1 Fabricators . | . . . . . . . . . . Repair Stations 1 | . . . 1 . . . . . . Recycling Units 3 | . 2 . 1 . . . . . . Scanalyzers 1 | . . . 1 . . . . . . Garrison Access 1 | . . . . . . . 1 . . Total Hacks 81 | . 33 . 35 . 1 . 1 9 2 Successful 54 | . 21 . 24 . 1 . 1 5 2 Failed 26 | . 11 . 11 . . . . 4 . Catastrophic . | . . . . . . . . . . Database Lockouts 1 | . 1 . . . . . . . . Manual 44 | . 18 . 21 . 1 . . 2 2 Terminals 70 | . 29 . 30 . . . . 9 2 Fabricators . | . . . . . . . . . . Repair Stations 2 | . . . 2 . . . . . . Recycling Units 5 | . 4 . 1 . . . . . . Scanalyzers 2 | . . . 2 . . . . . . Garrison Access 1 | . . . . . . . 1 . . Terminal Hacks 25 | . 10 . 11 . 1 . . 3 . Record 1 | . 1 . . . . . . . . Part Schematic 1 | . . . 1 . . . . . . Robot Schematic 1 | . . . 1 . . . . . . Robot Analysis 6 | . 2 . 4 . . . . . . Prototype ID Bank 4 | . 2 . 2 . . . . . . Open Door 1 | . . . . . . . . 1 . Emergency Access Points 1 | . . . 1 . . . . . . Terminal Index 1 | . 1 . . . . . . . . Unreport Threat 2 | . 1 . 1 . . . . . . Locate Traps 1 | . 1 . . . . . . . . Hauler Manifests 1 | . 1 . . . . . . . . Zone Layout 2 | . 1 . 1 . . . . . . Garrison Registry 1 | . . . . . . . . 1 . Patrol Navigation 1 | . . . . . . . . 1 . Derelict Proto ID Bank 1 | . . . . . 1 . . . . Fabricator Hacks . | . . . . . . . . . . Repair Station Hacks 2 | . . . 2 . . . . . . Scan Component 1 | . . . 1 . . . . . . Repair 1 | . . . 1 . . . . . . Recycling Unit Hacks . | . . . . . . . . . . Scanalyzer 2 | . . . 2 . . . . . . Insert Component 1 | . . . 1 . . . . . . Analyze 1 | . . . 1 . . . . . . Garrison Access Hacks 1 | . . . . . . . 1 . . Unlock Access 1 | . . . . . . . 1 . . Unauthorized Hacks 24 | . 11 . 9 . . . . 2 2 Terminals 22 | . 10 . 8 . . . . 2 2 Track 1 | . 1 . . . . . . . . Botnet 9 | . 3 . 3 . . . . 2 1 Skim 12 | . 6 . 5 . . . . . 1 Fabricators . | . . . . . . . . . . Repair Stations . | . . . . . . . . . . Recycling Units 2 | . 1 . 1 . . . . . . Tunnel 2 | . 1 . 1 . . . . . . Scanalyzers . | . . . . . . . . . . Garrison Access . | . . . . . . . . . . Data Cores Recovered . | . . . . . . . . . . Used . | . . . . . . . . . . Hacking Detections 23 | . 7 . 10 . . . 1 4 1 Full Trace Events 2 | . 1 . 1 . . . . . . Feedback Events 1 | . . . 1 . . . . . . Corruption 1 | . . . 1 . . . . . . Feedback Blocked . | . . . . . . . . . . Robot Schematics Acquired 1 | . . . 1 . . . . . . Robots Built . | . . . . . . . . . . Authchips . | . . . . . . . . . . Time . | . . . . . . . . . . Total Robot Build Rating . | . . . . . . . . . . Part Schematics Acquired 2 | . . . 2 . . . . . . Parts Built . | . . . . . . . . . . Authchips . | . . . . . . . . . . Time . | . . . . . . . . . . Total Part Build Rating . | . . . . . . . . . . Parts Repaired 1 | . . . 1 . . . . . . Time 32 | . . . 32 . . . . . . Parts Recycled . | . . . . . . . . . . Recycled Matter . | . . . . . . . . . . Retrieved Matter . | . . . . . . . . . . Retrieved Components . | . . . . . . . . . . Parts Scanalyzed 1 | . . . 1 . . . . . . Part Schematics Acquired 1 | . . . 1 . . . . . . Parts Damaged . | . . . . . . . . . . Bothacking | -11 -10 -10 -9 -9 -9 -8 -8 -8 -8 ------------ Run | Yrd Mat Min Mat Min Exi Min Mat Gar Mat Used RIF Installer 1 | . . . . . . . . 1 . Robots Hacked . | . . . . . . . . . . Non-combat . | . . . . . . . . . . Combat . | . . . . . . . . . . Robot Hacks Applied . | . . . . . . . . . . Relay Couplers Released 17 | . . . . . . . . 17 . Machine Destruction 17 | . . . . . . . . 17 . Fabnet Peak Effective % . | . . . . . . . . . . Robots Rewired 2 | . . . . . . . . 2 . Allies Hacked . | . . . . . . . . . . Hacks Repelled . | . . . . . . . . . . Allies | -11 -10 -10 -9 -9 -9 -8 -8 -8 -8 -------- Run | Yrd Mat Min Mat Min Exi Min Mat Gar Mat Total Allies 6 | . . 3 . 1 . . . 2 . Largest Group 3 | . . 3 2 1 1 . . 2 . Highest-Rated Group 45 | . . 40 32 31 31 . . 45 . Highest-Rated Ally 31 | . . 16 16 31 31 . . 25 . Total Orders . | . . . . . . . . . . Ally Attacks 46 | . . 16 22 3 . . . 5 . Total Damage 499 | . . 152 150 42 . . . 155 . Kills 8 | . . 3 3 1 . . . 1 . Allies Corrupted . | . . . . . . . . . . Allies Melted . | . . . . . . . . . . Intel | -11 -10 -10 -9 -9 -9 -8 -8 -8 -8 ------- Run | Yrd Mat Min Mat Min Exi Min Mat Gar Mat Robot Analysis Total 6 | . 2 . 4 . . . . . . Derelict Logs Recovered 3 | . . 1 . 2 . . . . . Drone Launches . | . . . . . . . . . . Drone Recoveries . | . . . . . . . . . . Exploration | -11 -10 -10 -9 -9 -9 -8 -8 -8 -8 ------------- Run | Yrd Mat Min Mat Min Exi Min Mat Gar Mat Turns Passed 12246 | 150 1394 1358 2002 1678 668 45 30 4434 487 Spaces Moved 5548 | 67 733 692 827 867 364 26 28 1744 200 Core 45 | 2 . . . . . . . 43 . Treads 1729 | 65 733 692 122 . . . . 117 . Legs 3774 | . . . 705 867 364 26 28 1584 200 Wheels . | . . . . . . . . . . Hover . | . . . . . . . . . . Flight . | . . . . . . . . . . Fastest Speed 50 | 50 160 160 130 180 180 180 98 98 190 Average Speed 181 | 156 160 160 185 180 180 180 98 200 190 Slowest Speed 1200 | 160 160 160 200 180 180 180 98 1200 190 Overloaded Moves . | . . . . . . . . . . Propulsion Burnouts . | . . . . . . . . . . Robots Hopped . | . . . . . . . . . . Cave-ins Triggered 1 | . . . . . . . . 1 . Exploration Rate (%) 56 | 5 97 95 74 99 63 18 7 94 16 Regions Visited 9 Branch Regions 4 Pre-discovered Areas 7 | . 1 . 5 1 . . . . . Known Exits Taken 3 | . . 1 . . . 1 1 . . Unknown Exits Taken 5 | 1 1 . 1 1 1 . . . . Scrap Searched 2 | . . 1 . 1 . . . . . Spaces Dug 28 | . 7 . 10 . . . . 5 6 Terrain Destroyed 61 | . 8 . 10 6 . . . 30 7 Melee 21 | . . . 10 . . . . 5 6 Projectile 9 | . 8 . . . . . . . 1 AOE 31 | . . . . 6 . . . 25 . Terrain Rammed . | . . . . . . . . . . Walls Destroyed . | . . . . . . . . . . Machines Disabled . | . . . . . . . . . . Actions | -11 -10 -10 -9 -9 -9 -8 -8 -8 -8 --------- Run | Yrd Mat Min Mat Min Exi Min Mat Gar Mat Total 7129 | 89 851 939 1124 961 379 25 30 2445 286 Wait 898 | 4 45 232 130 62 . . . 361 64 Move 5539 | 66 732 691 826 866 363 25 28 1742 200 Hop . | . . . . . . . . . . Pick Up 73 | 2 12 5 17 5 4 . . 28 . Fast Attach 30 | 7 . . 7 . 3 . . 13 . Attach 21 | . . . 3 1 . . 2 15 . Detach 7 | . . . . . 1 . . 6 . Swap 85 | . 10 5 26 3 1 . . 39 1 Drop 61 | . 4 4 21 6 7 . . 19 . Fire 280 | 10 48 2 78 10 . . . 126 6 Melee 77 | . . . 16 2 . . . 44 15 Ram . | . . . . . . . . . . Kick 5 | . . . . 5 . . . . . Crush . | . . . . . . . . . . Escape Stasis 5 | . . . . . . . . 5 . Rewire 44 | . . . . . . . . 44 . Trap 4 | . . . . 1 . . . 3 . Miscellaneous . | . . . . . . . . . . Route ------- -11/Scrapyard -10/Materials (discovered 5 exits: *Mat x3 / [*Min] / *Sub) -10/Mines (discovered 3 exits: *Mat x2 / Sub) -9/Materials (discovered 5 exits: *Mat x3 / [*Min] / [*Sto]) -9/Mines (discovered 3 exits: *Mat x2 / *Exi) -9/Exiles -8/Mines -8/Materials (discovered 2 exits: Fac / Gar) -8/Garrison (discovered 3 exits: *Mat x3) -8/Materials History --------- Turn | Location | Event 24 | -11/Scrapyard | Discovered new exit (range 15) 151 | -11/Scrapyard | Entered Materials 305 | -10/Materials | Build established: Mutant 327 | -10/Materials | Central database locked down 352 | -10/Materials | Discovered new exit (range 10) 653 | -10/Materials | Discovered new exit (range 10) 763 | -10/Materials | Learned 4 Recycling zone layouts 802 | -10/Materials | Learned 2 Storage zone layouts 829 | -10/Materials | Identified exit to Subcaves 844 | -10/Materials | Learned Storage security intel 847 | -10/Materials | Learned 2 Storage zone layouts 848 | -10/Materials | Learned Storage stockpile data 849 | -10/Materials | Learned location of 2 exits from Mines 1024 | -10/Materials | Discovered new exit (range 16) 1230 | -10/Materials | Discovered new exit (range 5) 1545 | -10/Materials | Entered Mines 1546 | -10/Mines | Identified exit to Materials 1561 | -10/Mines | Assisted by bots powering up and referring to "LRC-V3" 1624 | -10/Mines | Found a hidden stash of uninstalled traps 1659 | -10/Mines | Learned Materials trap positions 1806 | -10/Mines | A weapon hastily lodged in a ceiling crevice suddenly fell to the ground 1873 | -10/Mines | Assembled infested the area 1878 | -10/Mines | Assisted by a Guerilla fighting off Assembled 2271 | -10/Mines | Discovered exit to Materials (range 5) 2903 | -10/Mines | Entered Materials 2903 | -9/Materials | Accompanied by 2 allies 2903 | -9/Materials | Evolved 2 slots: Propulsion x1, Weapon x1 2904 | -9/Materials | Loaded intel: 11 trap records 3256 | -9/Materials | Discovered new exit (range 6) 3267 | -9/Materials | Build established: Gunner 3405 | -9/Materials | Discovered new exit (range 11) 4020 | -9/Materials | Core integrity fell below 50% 4027 | -9/Materials | Learned location of 1 exit from Storage 4075 | -9/Materials | Learned location of Mines (-8) 4115 | -9/Materials | Learned location of Zion (-6) 4147 | -9/Materials | Identified exit to Materials 4169 | -9/Materials | Learned location of 1 exit from Storage 4180 | -9/Materials | Loaded intel: 12 terminal locations 4190 | -9/Materials | Learned location of Mines (-9) 4242 | -9/Materials | Learned Storage emergency access door positions 4395 | -9/Materials | Discovered new exit (range 12) 4572 | -9/Materials | Repaired Hrd. Light Armor Plating 4905 | -9/Materials | Entered Mines 4916 | -9/Mines | Joined a pair of Derelicts in attacking an 0b10 outpost 5246 | -9/Mines | Learned 2 Materials zone layouts 5510 | -9/Mines | Build established: Tank 5656 | -9/Mines | Escorted by a lone wolf Derelict 5835 | -9/Mines | Discovered exit to Materials (range 13) 6229 | -9/Mines | Deemed a non-threat by the Exiles lab entrance 6231 | -9/Mines | Discovered new exit (range 5) 6583 | -9/Mines | Entered Exiles 6583 | -9/Exiles | Accompanied by 1 ally 6628 | -9/Exiles | Met 8R-AWN 6657 | -9/Exiles | Met EX-HEX 6726 | -9/Exiles | Met EX-DEC 6798 | -9/Exiles | Discovered new exit (range 11) 6969 | -9/Exiles | Met EX-BIN 6989 | -9/Exiles | Aligned with FarCom system 6990 | -9/Exiles | Given EX-Vault access code 7035 | -9/Exiles | Opened EX-Vault 7044 | -9/Exiles | Found Longsword +1 7083 | -9/Exiles | Warned to stay clear of 0b10 Research branches 7087 | -9/Exiles | Build established: Mutant 7251 | -9/Exiles | Left Exiles lab with Longsword +1 7251 | -9/Exiles | Entered Mines 7284 | -8/Mines | Discovered exit to Materials (range 6) 7296 | -8/Mines | Entered Materials 7296 | -8/Materials | Evolved 2 slots: Propulsion x2 7297 | -8/Materials | Identified exit to Factory 7326 | -8/Materials | Identified exit to Garrison 7326 | -8/Materials | Entered Garrison 7414 | -8/Garrison | Discovered new exit (range 69) 7414 | -8/Garrison | Discovered new exit (range 75) 7414 | -8/Garrison | Discovered new exit (range 42) 7500 | -8/Garrison | Installed Relay Interface Framework 7608 | -8/Garrison | Triggered checkpoint 7682 | -8/Garrison | Garrison Relay disabled 7831 | -8/Garrison | Triggered checkpoint 8000 | -8/Garrison | Build established: Skirmisher 8008 | -8/Garrison | Triggered checkpoint 8716 | -8/Garrison | Triggered checkpoint 8837 | -8/Garrison | Garrison Relay disabled 9386 | -8/Garrison | Triggered checkpoint 9461 | -8/Garrison | Lost 3 parts (1n2w) 9651 | -8/Garrison | Garrison Relay disabled 9672 | -8/Garrison | Triggered checkpoint 9744 | -8/Garrison | Build established: Mutant 9828 | -8/Garrison | Crushed by falling debris 10064 | -8/Garrison | Spotted B-75 Beast 10064 | -8/Garrison | Spotted B-75 Beast 10155 | -8/Garrison | Garrison Relay disabled 10158 | -8/Garrison | Triggered checkpoint 10207 | -8/Garrison | Garrison Relay disabled 10533 | -8/Garrison | Destroyed B-75 Beast 10731 | -8/Garrison | Core integrity fell below 50% 10800 | -8/Garrison | Core integrity fell below 20% 10820 | -8/Garrison | Lost 3 parts (2n1u) 10920 | -8/Garrison | Destroyed B-75 Beast 11760 | -8/Garrison | Entered Materials 11777 | -8/Materials | Build established: Scavenger-Mutant 12160 | -8/Materials | First assault squad dispatched 12247 | -8/Materials | Destroyed by L-31 Rogue with Katana Last Messages --------------- 12217_ Knocked back. 12218_ K-01 Serf collects debris. 12224_ Mak. Spear destroyed. 12224_ System corrupted by crushing effect (+2). 12226_ B-36 Bruiser destroyed. 12228_ W-25 Informer destroyed. 12229_ Acquired 23 matter. 12230_ K-01 Serf collects debris. 12232_ G-50 Soldier destroyed. 12234_ K-01 Serf collects debris. 12236_ Acquired 56 matter. 12237_ K-01 Serf collects debris. 12238_ I-25 Savior knocked back. 12239_ K-01 Serf collects debris. 12239_ Critical hit (Burn: +37). 12240_ L-31 Rogue knocked back. 12242_ K-01 Serf collects debris. 12245_ Magnetic Acceleration Cannon severed. 12246_ L-31 Rogue Imp. Aluminum Leg severed. 12247_ K-01 Serf collects debris. Map ----- +----------------------------------------------------+ | #??????##!!!!##?????????????????????????????????? | | #??????#! !#?????????????????????????????????? | | ##?????# #?????????????????????????????????? | | ####### ################### ###???????????? | | #???????????? | | +???????????? | | #???????????? | | ###+#############+##############???????????????? | | ## ### #????????????????????????? | | ## #?# #????????????????????????? | | ## """ """ #?# #????????????????????????? | | ## """ """ ### #????????????????????????? | | ## """ """ "## #????????????????????????? | | ## ### #???Y????????????????????? | | ## #?# #????????????????????????? | | ## #?# #??????"#????????????????? | | ###########################??R"#????????????????? | | # # ? # #?? "###??????????????? | | + """ # # +? ??????????????? | | # """ #? """ # # i ???????????????? | | # """ #?""""" + # """ ???????? | | # #??"""" # g % + """ =!#????????? | | #! #??"""" ??# # """ =!#????????? | | ########???"" ???# kk%== # #????????? | | ??????????? ???# %/]*!+ #????????? | | ???????????+#????# [!%l@=#########?????????????? | | ?????????????????#####+####?????????????????????? | | ???????????w????????? ????????????????????????? | | ???????????????????? ????????????????????????? | | ??????????????????? ??w?????????????????????? | | ??????????????????#### ????????????????????????? | | ?????????????????????# #???????????????????????? | | ?????????????????????# #???????????????????????? | | ?????????????????????# #???????????????????????? | | ?????????????????????# #???????????????????????? | | ?????????????????????? ????????????????????????? | | ?????????????????????? ????????????????????????? | | ?????????????????????????????????????????????????? | | ?????????????????????????????????????????????????? | | ?????????????????????????????????????????????????? | | ?????????????????????????????????????????????????? | | ?????????????????????????????????????????????????? | | ?????????????????????????????????????????????????? | | ?????????????????????????????????????????????????? | | ?????????????????????????????????????????????????? | | ?????????????????????????????????????????????????? | | ?????????????????????????????????????????????????? | | ?????????????????????????????????????????????????? | | ?????????????????????????????????????????????????? | | ?????????????????????????????????????????????????? | +----------------------------------------------------+ Best States ------------- Heat Dissipation 31 Energy Generation 19 Energy Capacity 310 Matter Stores 300 Matter Capacity 300 Sight Range 16 Terrain Scan Density 10 Armor Coverage 225 Resistance: KI 30 Weapon Shielding 33 Evasion (%) 55 Recoil Reduction 2 Authchip Count 1 Item Schematics ----------------- Hrd. Light Armor Plating | -9/Materials | Scanalyzed Signal Interpreter | -9/Materials | Hacked Robot Schematics ------------------ M-13 Machinist | -9/Materials | Hacked Fabricated ------------ Nothing Alien Tech Used ----------------- None Achievements -------------- None Challenges ------------ None Game ------ Seed ThunderFortressLauncher Manual? 0 Play Time 01:31:12 Cumulative 157.7 hours Start 2024.08.29 @ 11:11:17 End 2024.08.29 @ 14:20:47 Sessions 1 Manual Loads 0 Difficulty Rogue Special Mode None Game No. 121 Rogue 121 Adventurer 0 Explorer 0 Win Type - Total 1 Types 0/0/0/1/0/0/0/0/0 Lore% 60 Gallery% 67 Achievement% 50 Wizard Run 0 Options --------- Layout 2 ASCII 0 Keyboard 1 Movement Vi Keybinds 0 Fullscreen 1 Font 32/SmallcapsGlow Map View 77x44 Zoom Use 0% Tactical HUD 1 Map Filters NONE Filters NONE Steam 1 RUN: 7272515d-c670-475f-a9fd-5e382afdf6a6